{"text_format":"1","workbook":"xlsx","n_sheets":3,"sheets":["Список складских запасов","Список товарных подборов","Просмотр контейнеров"],"not_rendered":{"charts":0,"images":0,"macros":1,"external_links":0,"defined_names":8,"comments":0,"pivot_tables":0},"unopened":[],"bounds":{"document_bytes":16777216,"sheet_cells":100000,"rows_first":2000,"rows_last":500,"rows_between":2000,"halvings":0,"cell_chars":16384,"cell_head_chars":4096},"cells_cut":0,"cells_raw":0,"read":"whole","date_system":"1900"}

{"sheet":"Список складских запасов","index":0,"n_rows":15,"n_cols":11,"rows_kept":15,"cut":false,"hidden":false,"merged":[]}
[null,"СПИСОК СКЛАДСКИХ ЗАПАСОВ"]
[null,"ОБЩАЯ СТОИМОСТЬ ЗАПАСОВ","ТОВАРНЫЕ ПОЗИЦИИ:","КОЛ-ВО КОНТЕЙНЕРОВ:","СПИСОК ТОВАРНЫХ ПОДБОРОВ","ПРОСМОТР КОНТЕЙНЕРОВ"]
[null,{"$f":"SUM(ИнвентарнаяВедомость[Стоимость запасов])","v":297586},{"$f":"COUNTA(ИнвентарнаяВедомость[ОПИСАНИЕ])","v":11},{"$f":"SUMPRODUCT((1/COUNTIF(ИнвентарнаяВедомость[№ КОНТЕЙНЕРА],ИнвентарнаяВедомость[№ КОНТЕЙНЕРА]&\"\")))","v":6}]
[null,"SKU","ОПИСАНИЕ","№ КОНТЕЙНЕРА","РАСПОЛОЖЕНИЕ","БЛОК","КОЛ-ВО","КОЛ-ВО ПОВТОРНОГО ЗАКАЗА","СТОИМОСТЬ","Стоимость запасов","ПОВТОРНЫЙ ЗАКАЗ"]
[null,"SP7875","Пункт 1","T345",{"$f":"IFERROR(VLOOKUP(ИнвентарнаяВедомость[[#This Row],[№ КОНТЕЙНЕРА]],ПросмотрКонтейнеров[],3,FALSE),\"\")","v":"Ряд 2, ячейка 1"},"Каждый",20,10,1920,{"$f":"ИнвентарнаяВедомость[[#This Row],[КОЛ-ВО]]*ИнвентарнаяВедомость[[#This Row],[СТОИМОСТЬ]]","v":38400},{"$f":"IFERROR(IF(ИнвентарнаяВедомость[[#This Row],[КОЛ-ВО]]<=ИнвентарнаяВедомость[[#This Row],[КОЛ-ВО ПОВТОРНОГО ЗАКАЗА]],1,0),0)","v":0}]
[null,"TR87680","Пункт 2","T345",{"$f":"IFERROR(VLOOKUP(ИнвентарнаяВедомость[[#This Row],[№ КОНТЕЙНЕРА]],ПросмотрКонтейнеров[],3,FALSE),\"\")","v":"Ряд 2, ячейка 1"},"Каждый",30,15,2560,{"$f":"ИнвентарнаяВедомость[[#This Row],[КОЛ-ВО]]*ИнвентарнаяВедомость[[#This Row],[СТОИМОСТЬ]]","v":76800},{"$f":"IFERROR(IF(ИнвентарнаяВедомость[[#This Row],[КОЛ-ВО]]<=ИнвентарнаяВедомость[[#This Row],[КОЛ-ВО ПОВТОРНОГО ЗАКАЗА]],1,0),0)","v":0}]
[null,"MK676554","Пункт 3","T5789",{"$f":"IFERROR(VLOOKUP(ИнвентарнаяВедомость[[#This Row],[№ КОНТЕЙНЕРА]],ПросмотрКонтейнеров[],3,FALSE),\"\")","v":"Ряд 1, ячейка 1"},"Каждый",10,5,325,{"$f":"ИнвентарнаяВедомость[[#This Row],[КОЛ-ВО]]*ИнвентарнаяВедомость[[#This Row],[СТОИМОСТЬ]]","v":3250},{"$f":"IFERROR(IF(ИнвентарнаяВедомость[[#This Row],[КОЛ-ВО]]<=ИнвентарнаяВедомость[[#This Row],[КОЛ-ВО ПОВТОРНОГО ЗАКАЗА]],1,0),0)","v":0}]
[null,"YE98767","Пункт 4","T9876",{"$f":"IFERROR(VLOOKUP(ИнвентарнаяВедомость[[#This Row],[№ КОНТЕЙНЕРА]],ПросмотрКонтейнеров[],3,FALSE),\"\")","v":"Ряд 3, ячейка 2"},"Поле (10 ct)",40,10,960,{"$f":"ИнвентарнаяВедомость[[#This Row],[КОЛ-ВО]]*ИнвентарнаяВедомость[[#This Row],[СТОИМОСТЬ]]","v":38400},{"$f":"IFERROR(IF(ИнвентарнаяВедомость[[#This Row],[КОЛ-ВО]]<=ИнвентарнаяВедомость[[#This Row],[КОЛ-ВО ПОВТОРНОГО ЗАКАЗА]],1,0),0)","v":0}]
[null,"XR23423","Пункт 5","T098",{"$f":"IFERROR(VLOOKUP(ИнвентарнаяВедомость[[#This Row],[№ КОНТЕЙНЕРА]],ПросмотрКонтейнеров[],3,FALSE),\"\")","v":"Ряд 3, ячейка 1"},"Каждый",12,10,1664,{"$f":"ИнвентарнаяВедомость[[#This Row],[КОЛ-ВО]]*ИнвентарнаяВедомость[[#This Row],[СТОИМОСТЬ]]","v":19968},{"$f":"IFERROR(IF(ИнвентарнаяВедомость[[#This Row],[КОЛ-ВО]]<=ИнвентарнаяВедомость[[#This Row],[КОЛ-ВО ПОВТОРНОГО ЗАКАЗА]],1,0),0)","v":0}]
[null,"PW98762","Пункт 6","T345",{"$f":"IFERROR(VLOOKUP(ИнвентарнаяВедомость[[#This Row],[№ КОНТЕЙНЕРА]],ПросмотрКонтейнеров[],3,FALSE),\"\")","v":"Ряд 2, ячейка 1"},"Каждый",7,10,3200,{"$f":"ИнвентарнаяВедомость[[#This Row],[КОЛ-ВО]]*ИнвентарнаяВедомость[[#This Row],[СТОИМОСТЬ]]","v":22400},{"$f":"IFERROR(IF(ИнвентарнаяВедомость[[#This Row],[КОЛ-ВО]]<=ИнвентарнаяВедомость[[#This Row],[КОЛ-ВО ПОВТОРНОГО ЗАКАЗА]],1,0),0)","v":1}]
[null,"BM87684","Пункт 7","T349",{"$f":"IFERROR(VLOOKUP(ИнвентарнаяВедомость[[#This Row],[№ КОНТЕЙНЕРА]],ПросмотрКонтейнеров[],3,FALSE),\"\")","v":"Ряд 1, ячейка 2"},"Каждый",10,5,640,{"$f":"ИнвентарнаяВедомость[[#This Row],[КОЛ-ВО]]*ИнвентарнаяВедомость[[#This Row],[СТОИМОСТЬ]]","v":6400},{"$f":"IFERROR(IF(ИнвентарнаяВедомость[[#This Row],[КОЛ-ВО]]<=ИнвентарнаяВедомость[[#This Row],[КОЛ-ВО ПОВТОРНОГО ЗАКАЗА]],1,0),0)","v":0}]
[null,"BH67655","Пункт 8","T5789",{"$f":"IFERROR(VLOOKUP(ИнвентарнаяВедомость[[#This Row],[№ КОНТЕЙНЕРА]],ПросмотрКонтейнеров[],3,FALSE),\"\")","v":"Ряд 1, ячейка 1"},"Каждый",19,10,192,{"$f":"ИнвентарнаяВедомость[[#This Row],[КОЛ-ВО]]*ИнвентарнаяВедомость[[#This Row],[СТОИМОСТЬ]]","v":3648},{"$f":"IFERROR(IF(ИнвентарнаяВедомость[[#This Row],[КОЛ-ВО]]<=ИнвентарнаяВедомость[[#This Row],[КОЛ-ВО ПОВТОРНОГО ЗАКАЗА]],1,0),0)","v":0}]
[null,"WT98768","Пункт 9","T9875",{"$f":"IFERROR(VLOOKUP(ИнвентарнаяВедомость[[#This Row],[№ КОНТЕЙНЕРА]],ПросмотрКонтейнеров[],3,FALSE),\"\")","v":"Ряд 2, ячейка 2"},"Упаковка (5 ct)",20,30,896,{"$f":"ИнвентарнаяВедомость[[#This Row],[КОЛ-ВО]]*ИнвентарнаяВедомость[[#This Row],[СТОИМОСТЬ]]","v":17920},{"$f":"IFERROR(IF(ИнвентарнаяВедомость[[#This Row],[КОЛ-ВО]]<=ИнвентарнаяВедомость[[#This Row],[КОЛ-ВО ПОВТОРНОГО ЗАКАЗА]],1,0),0)","v":1}]
[null,"TS3456","Пункт 10","T349",{"$f":"IFERROR(VLOOKUP(ИнвентарнаяВедомость[[#This Row],[№ КОНТЕЙНЕРА]],ПросмотрКонтейнеров[],3,FALSE),\"\")","v":"Ряд 1, ячейка 2"},"Каждый",15,8,3840,{"$f":"ИнвентарнаяВедомость[[#This Row],[КОЛ-ВО]]*ИнвентарнаяВедомость[[#This Row],[СТОИМОСТЬ]]","v":57600},{"$f":"IFERROR(IF(ИнвентарнаяВедомость[[#This Row],[КОЛ-ВО]]<=ИнвентарнаяВедомость[[#This Row],[КОЛ-ВО ПОВТОРНОГО ЗАКАЗА]],1,0),0)","v":0}]
[null,"WDG123","Пункт 11","T349",{"$f":"IFERROR(VLOOKUP(ИнвентарнаяВедомость[[#This Row],[№ КОНТЕЙНЕРА]],ПросмотрКонтейнеров[],3,FALSE),\"\")","v":"Ряд 1, ячейка 2"},"Каждый",25,15,512,{"$f":"ИнвентарнаяВедомость[[#This Row],[КОЛ-ВО]]*ИнвентарнаяВедомость[[#This Row],[СТОИМОСТЬ]]","v":12800},{"$f":"IFERROR(IF(ИнвентарнаяВедомость[[#This Row],[КОЛ-ВО]]<=ИнвентарнаяВедомость[[#This Row],[КОЛ-ВО ПОВТОРНОГО ЗАКАЗА]],1,0),0)","v":0}]

{"sheet":"Список товарных подборов","index":1,"n_rows":9,"n_cols":9,"rows_kept":9,"cut":false,"hidden":false,"merged":[]}
[null,"СПИСОК ПОДБОРОВ ТОВАРА"]
[null,null,"СПИСОК ЗАПАСОВ"]
[]
[null,"№ ЗАКАЗА","SKU","КОЛ-ВО ДЛЯ ПОДБОРА","ДОСТУПНОЕ КОЛ-ВО","ОПИСАНИЕ ПОЗИЦИИ","БЛОК","№ КОНТЕЙНЕРА","РАСПОЛОЖЕНИЕ"]
[null,"TP001-1","SP7875",3,{"$f":"IFERROR(VLOOKUP(СписокТоварныхПодборов[SKU],ИнвентарнаяВедомость[],6,FALSE),\"\")","v":20},{"$f":"IFERROR(VLOOKUP(СписокТоварныхПодборов[SKU],ИнвентарнаяВедомость[],2,FALSE),\"\")","v":"Пункт 1"},{"$f":"IFERROR(VLOOKUP(СписокТоварныхПодборов[SKU],ИнвентарнаяВедомость[],5,FALSE),\"\")","v":"Каждый"},{"$f":"IFERROR(VLOOKUP(СписокТоварныхПодборов[SKU],ИнвентарнаяВедомость[],3,FALSE),\"\")","v":"T345"},{"$f":"IFERROR(VLOOKUP(СписокТоварныхПодборов[SKU],ИнвентарнаяВедомость[],4,FALSE),\"\")","v":"Ряд 2, ячейка 1"}]
[null,"TP001-1","YE98767",1,{"$f":"IFERROR(VLOOKUP(СписокТоварныхПодборов[SKU],ИнвентарнаяВедомость[],6,FALSE),\"\")","v":40},{"$f":"IFERROR(VLOOKUP(СписокТоварныхПодборов[SKU],ИнвентарнаяВедомость[],2,FALSE),\"\")","v":"Пункт 4"},{"$f":"IFERROR(VLOOKUP(СписокТоварныхПодборов[SKU],ИнвентарнаяВедомость[],5,FALSE),\"\")","v":"Поле (10 ct)"},{"$f":"IFERROR(VLOOKUP(СписокТоварныхПодборов[SKU],ИнвентарнаяВедомость[],3,FALSE),\"\")","v":"T9876"},{"$f":"IFERROR(VLOOKUP(СписокТоварныхПодборов[SKU],ИнвентарнаяВедомость[],4,FALSE),\"\")","v":"Ряд 3, ячейка 2"}]
[null,"TP001-1","BM87684",2,{"$f":"IFERROR(VLOOKUP(СписокТоварныхПодборов[SKU],ИнвентарнаяВедомость[],6,FALSE),\"\")","v":10},{"$f":"IFERROR(VLOOKUP(СписокТоварныхПодборов[SKU],ИнвентарнаяВедомость[],2,FALSE),\"\")","v":"Пункт 7"},{"$f":"IFERROR(VLOOKUP(СписокТоварныхПодборов[SKU],ИнвентарнаяВедомость[],5,FALSE),\"\")","v":"Каждый"},{"$f":"IFERROR(VLOOKUP(СписокТоварныхПодборов[SKU],ИнвентарнаяВедомость[],3,FALSE),\"\")","v":"T349"},{"$f":"IFERROR(VLOOKUP(СписокТоварныхПодборов[SKU],ИнвентарнаяВедомость[],4,FALSE),\"\")","v":"Ряд 1, ячейка 2"}]
[null,"TP001-1","TS3456",6,{"$f":"IFERROR(VLOOKUP(СписокТоварныхПодборов[SKU],ИнвентарнаяВедомость[],6,FALSE),\"\")","v":15},{"$f":"IFERROR(VLOOKUP(СписокТоварныхПодборов[SKU],ИнвентарнаяВедомость[],2,FALSE),\"\")","v":"Пункт 10"},{"$f":"IFERROR(VLOOKUP(СписокТоварныхПодборов[SKU],ИнвентарнаяВедомость[],5,FALSE),\"\")","v":"Каждый"},{"$f":"IFERROR(VLOOKUP(СписокТоварныхПодборов[SKU],ИнвентарнаяВедомость[],3,FALSE),\"\")","v":"T349"},{"$f":"IFERROR(VLOOKUP(СписокТоварныхПодборов[SKU],ИнвентарнаяВедомость[],4,FALSE),\"\")","v":"Ряд 1, ячейка 2"}]
[null,"TP001-1","MK676554",3,{"$f":"IFERROR(VLOOKUP(СписокТоварныхПодборов[SKU],ИнвентарнаяВедомость[],6,FALSE),\"\")","v":10},{"$f":"IFERROR(VLOOKUP(СписокТоварныхПодборов[SKU],ИнвентарнаяВедомость[],2,FALSE),\"\")","v":"Пункт 3"},{"$f":"IFERROR(VLOOKUP(СписокТоварныхПодборов[SKU],ИнвентарнаяВедомость[],5,FALSE),\"\")","v":"Каждый"},{"$f":"IFERROR(VLOOKUP(СписокТоварныхПодборов[SKU],ИнвентарнаяВедомость[],3,FALSE),\"\")","v":"T5789"},{"$f":"IFERROR(VLOOKUP(СписокТоварныхПодборов[SKU],ИнвентарнаяВедомость[],4,FALSE),\"\")","v":"Ряд 1, ячейка 1"}]

{"sheet":"Просмотр контейнеров","index":2,"n_rows":11,"n_cols":7,"rows_kept":11,"cut":false,"hidden":false,"merged":[]}
[null,"ПРОСМОТР КОНТЕЙНЕРОВ"]
[null,"ИНВЕНТАРНЫЙ СПИСОК"]
[]
[null,"№ КОНТЕЙНЕРА","ОПИСАНИЕ","РАСПОЛОЖЕНИЕ","ШИРИНА","ВЫСОТА","ДЛИНА"]
[null,"T345","Большой контейнер","Ряд 2, ячейка 1",50,10,10]
[null,"T5789","Маленький контейнер","Ряд 1, ячейка 1",25,5,5]
[null,"T9876","Большой контейнер","Ряд 3, ячейка 2",50,10,10]
[null,"T098","Средний контейнер","Ряд 3, ячейка 1",30,7,10]
[null,"T349","Маленький контейнер","Ряд 1, ячейка 2",25,5,5]
[null,"T5789","Большой контейнер","Ряд 4, ячейка 5",50,10,10]
[null,"T9875","Большой контейнер","Ряд 2, ячейка 2",50,10,10]